[Event "Early-Titled-Tuesday-Blitz-September-26-2023"]
[Site "Chess.com"]
[Date "2023.09.26"]
[Round "11"]
[White "MasterKroket"]
[Black "GradualismUnleashed"]
[Result "0-1"]
[WhiteElo "2451"]
[BlackElo "2595"]
[TimeControl "180+1"]
[EndTime "10:02:34 PDT"]
[Termination "GradualismUnleashed won by resignation"]

1. e4 {[%clk 0:02:56.2]} 1... c5 {[%clk 0:02:59.9]} 2. Nf3 {[%clk 0:02:55.8]}
2... e6 {[%clk 0:03:00.5]} 3. d4 {[%clk 0:02:55.8]} 3... cxd4 {[%clk 0:03:01.4]}
4. Nxd4 {[%clk 0:02:56.5]} 4... Nc6 {[%clk 0:03:02.1]} 5. Nc3 {[%clk 0:02:55.4]}
5... Qc7 {[%clk 0:03:02.6]} 6. Be3 {[%clk 0:02:51.3]} 6... a6 {[%clk 0:03:03]}
7. Qf3 {[%clk 0:02:51.6]} 7... Bd6 {[%clk 0:03:02.6]} 8. O-O-O {[%clk
0:02:46.7]} 8... Be5 {[%clk 0:03:02.8]} 9. Kb1 {[%clk 0:02:13.9]} 9... Nge7
{[%clk 0:03:01.8]} 10. h4 {[%clk 0:02:07.1]} 10... b5 {[%clk 0:03:01.2]} 11.
Nxc6 {[%clk 0:01:58.9]} 11... Nxc6 {[%clk 0:02:57.7]} 12. Bd3 {[%clk 0:01:57.8]}
12... Bb7 {[%clk 0:02:48.3]} 13. h5 {[%clk 0:01:55.2]} 13... Rc8 {[%clk
0:02:42.7]} 14. Ne2 {[%clk 0:01:51.1]} 14... Nb4 {[%clk 0:02:40]} 15. Nd4 {[%clk
0:01:43.9]} 15... f5 {[%clk 0:02:32.9]} 16. a3 {[%clk 0:01:37.4]} 16... Nxd3
{[%clk 0:02:31.1]} 17. cxd3 {[%clk 0:01:37.6]} 17... f4 {[%clk 0:02:25.1]} 18.
Rc1 {[%clk 0:01:36]} 18... Qb8 {[%clk 0:02:21.9]} 19. Nxe6 {[%clk 0:01:23.7]}
19... dxe6 {[%clk 0:02:17.4]} 20. d4 {[%clk 0:01:24.4]} 20... fxe3 {[%clk
0:02:04.9]} 21. Rxc8+ {[%clk 0:01:22.9]} 21... Qxc8 {[%clk 0:01:56.3]} 22. dxe5
{[%clk 0:01:19.1]} 22... Qc4 {[%clk 0:01:47.6]} 0-1

[Event "Early-Titled-Tuesday-Blitz-September-26-2023"]
[Site "Chess.com"]
[Date "2023.09.26"]
[Round "11"]
[White "Roedor"]
[Black "Kielinkei"]
[Result "1/2-1/2"]
[WhiteElo "2346"]
[BlackElo "2470"]
[TimeControl "180+1"]
[EndTime "10:02:38 PDT"]
[Termination "Game drawn by repetition"]

1. d4 {[%clk 0:03:00.9]} 1... Nf6 {[%clk 0:02:59.8]} 2. c4 {[%clk 0:03:00.6]}
2... e6 {[%clk 0:03:00.2]} 3. g3 {[%clk 0:03:00.7]} 3... Bb4+ {[%clk 0:03:00]}
4. Nd2 {[%clk 0:02:59.8]} 4... c5 {[%clk 0:02:59]} 5. Nf3 {[%clk 0:02:59.6]}
5... Nc6 {[%clk 0:02:54.8]} 6. a3 {[%clk 0:02:55.2]} 6... Bxd2+ {[%clk
0:02:53.3]} 7. Qxd2 {[%clk 0:02:56.1]} 7... Na5 {[%clk 0:02:50.5]} 8. Qc2 {[%clk
0:02:41.4]} 8... b5 {[%clk 0:02:50.5]} 9. cxb5 {[%clk 0:02:35.1]} 9... c4 {[%clk
0:02:50.8]} 10. Bd2 {[%clk 0:02:27.2]} 10... Nb3 {[%clk 0:02:42.7]} 11. Rd1
{[%clk 0:02:25.9]} 11... d5 {[%clk 0:02:38.6]} 12. Bb4 {[%clk 0:02:20.3]} 12...
Bd7 {[%clk 0:02:28]} 13. a4 {[%clk 0:01:54.5]} 13... a6 {[%clk 0:02:25.3]} 14.
Nd2 {[%clk 0:01:36.5]} 14... Nxd4 {[%clk 0:02:16.9]} 15. Qc3 {[%clk 0:01:35.7]}
15... Nb3 {[%clk 0:01:39.5]} 16. Nxb3 {[%clk 0:01:35.1]} 16... cxb3 {[%clk
0:01:38.7]} 17. e4 {[%clk 0:01:30.6]} 17... Nxe4 {[%clk 0:01:27.1]} 18. Qxg7
{[%clk 0:01:23.2]} 18... Qf6 {[%clk 0:01:27.1]} 19. Qxf6 {[%clk 0:01:23.3]}
19... Nxf6 {[%clk 0:01:28]} 20. Bc3 {[%clk 0:01:19.2]} 20... Ke7 {[%clk
0:01:27.5]} 21. Bb4+ {[%clk 0:01:19.5]} 21... Ke8 {[%clk 0:01:27.6]} 22. Bc3
{[%clk 0:01:19.9]} 22... Ke7 {[%clk 0:01:28.1]} 23. Bb4+ {[%clk 0:01:20.2]}
23... Ke8 {[%clk 0:01:28.7]} 24. Bc3 {[%clk 0:01:19.7]} 24... Ke7 {[%clk
0:01:29.2]} 1/2-1/2

[Event "Early-Titled-Tuesday-Blitz-September-26-2023"]
[Site "Chess.com"]
[Date "2023.09.26"]
[Round "11"]
[White "Aswathchess"]
[Black "vovachesss"]
[Result "1-0"]
[WhiteElo "2603"]
[BlackElo "2719"]
[TimeControl "180+1"]
[EndTime "10:02:39 PDT"]
[Termination "Aswathchess won by resignation"]

1. e4 {[%clk 0:03:00.9]} 1... e5 {[%clk 0:02:48.8]} 2. Nf3 {[%clk 0:03:00.1]}
2... Nc6 {[%clk 0:02:49.5]} 3. Bc4 {[%clk 0:03:00.6]} 3... Nf6 {[%clk
0:02:49.2]} 4. d3 {[%clk 0:03:00.6]} 4... h6 {[%clk 0:02:48]} 5. O-O {[%clk
0:02:59.7]} 5... d6 {[%clk 0:02:48.2]} 6. a4 {[%clk 0:02:58.4]} 6... g6 {[%clk
0:02:46.9]} 7. h3 {[%clk 0:02:57.7]} 7... Bg7 {[%clk 0:02:46.6]} 8. Re1 {[%clk
0:02:56.8]} 8... O-O {[%clk 0:02:46.1]} 9. Nc3 {[%clk 0:02:55.3]} 9... Re8
{[%clk 0:02:40.3]} 10. Be3 {[%clk 0:02:44.5]} 10... Be6 {[%clk 0:02:38.9]} 11.
Qd2 {[%clk 0:02:43.5]} 11... Kh7 {[%clk 0:02:36.9]} 12. Rab1 {[%clk 0:02:34.3]}
12... d5 {[%clk 0:02:34.1]} 13. exd5 {[%clk 0:02:34.1]} 13... Nxd5 {[%clk
0:02:35]} 14. Nxd5 {[%clk 0:02:28.7]} 14... Bxd5 {[%clk 0:02:35.3]} 15. Bxd5
{[%clk 0:02:29.6]} 15... Qxd5 {[%clk 0:02:35.3]} 16. b4 {[%clk 0:02:29.3]} 16...
Rad8 {[%clk 0:02:30.5]} 17. b5 {[%clk 0:02:28.6]} 17... Ne7 {[%clk 0:02:30.1]}
18. Qa5 {[%clk 0:02:23.6]} 18... b6 {[%clk 0:02:07.9]} 19. Qxa7 {[%clk
0:02:22.6]} 19... Rd7 {[%clk 0:01:24.5]} 20. c4 {[%clk 0:02:20.8]} 20... Qxd3
{[%clk 0:01:13.4]} 21. Rbd1 {[%clk 0:02:17.1]} 21... Qf5 {[%clk 0:01:13.7]} 22.
Rxd7 {[%clk 0:02:15.5]} 22... Qxd7 {[%clk 0:01:14.6]} 23. Bxb6 {[%clk
0:02:11.9]} 23... e4 {[%clk 0:01:09.8]} 24. Qxc7 {[%clk 0:02:00]} 24... Qxc7
{[%clk 0:01:07]} 25. Bxc7 {[%clk 0:02:00.9]} 25... exf3 {[%clk 0:01:07.2]} 26.
b6 {[%clk 0:02:00]} 26... Bf6 {[%clk 0:01:04.3]} 27. b7 {[%clk 0:01:59.5]} 1-0

[Event "Early-Titled-Tuesday-Blitz-September-26-2023"]
[Site "Chess.com"]
[Date "2023.09.26"]
[Round "11"]
[White "MMAHDI2013"]
[Black "Jaka_Brilej"]
[Result "0-1"]
[WhiteElo "2329"]
[BlackElo "2503"]
[TimeControl "180+1"]
[EndTime "10:03:05 PDT"]
[Termination "Jaka_Brilej won by resignation"]

1. c4 {[%clk 0:03:00.9]} 1... e6 {[%clk 0:02:58.6]} 2. Nf3 {[%clk 0:03:00.1]}
2... d5 {[%clk 0:02:58.7]} 3. g3 {[%clk 0:02:59.8]} 3... Nf6 {[%clk 0:02:57.2]}
4. Bg2 {[%clk 0:03:00.3]} 4... dxc4 {[%clk 0:02:57.6]} 5. Qa4+ {[%clk
0:02:58.7]} 5... Nbd7 {[%clk 0:02:52.5]} 6. O-O {[%clk 0:02:57.5]} 6... a6
{[%clk 0:02:51.8]} 7. Qxc4 {[%clk 0:02:56]} 7... b5 {[%clk 0:02:51.7]} 8. Qc6
{[%clk 0:02:56.1]} 8... Rb8 {[%clk 0:02:51.1]} 9. Qc2 {[%clk 0:02:55.2]} 9...
Bb7 {[%clk 0:02:51.3]} 10. d4 {[%clk 0:02:54.9]} 10... c5 {[%clk 0:02:48.5]} 11.
Bf4 {[%clk 0:02:52.8]} 11... Rc8 {[%clk 0:02:48]} 12. dxc5 {[%clk 0:02:49.2]}
12... Bxc5 {[%clk 0:02:47.7]} 13. Qd1 {[%clk 0:02:45.7]} 13... O-O {[%clk
0:02:45.3]} 14. Nc3 {[%clk 0:02:45.3]} 14... Nb6 {[%clk 0:02:40]} 15. Nd2 {[%clk
0:02:39.3]} 15... Bxg2 {[%clk 0:02:36.1]} 16. Kxg2 {[%clk 0:02:40.2]} 16... Nfd5
{[%clk 0:02:36.5]} 17. Nde4 {[%clk 0:02:20.1]} 17... Bd4 {[%clk 0:02:25.4]} 18.
Bd6 {[%clk 0:01:58.4]} 18... Bxc3 {[%clk 0:02:09.4]} 19. Bxf8 {[%clk 0:01:48.2]}
19... Bxb2 {[%clk 0:02:09.2]} 20. Rb1 {[%clk 0:01:43.3]} 20... Nc4 {[%clk
0:02:09.5]} 21. Bd6 {[%clk 0:00:38.4]} 21... Nde3+ {[%clk 0:01:56.5]} 22. fxe3
{[%clk 0:00:32.3]} 22... Nxe3+ {[%clk 0:01:57.4]} 23. Kh1 {[%clk 0:00:30.2]}
23... Nxd1 {[%clk 0:01:55.2]} 0-1

[Event "Early-Titled-Tuesday-Blitz-September-26-2023"]
[Site "Chess.com"]
[Date "2023.09.26"]
[Round "11"]
[White "ZeGood_ZeBad_ZeUgly"]
[Black "verrbaa"]
[Result "0-1"]
[WhiteElo "2302"]
[BlackElo "2423"]
[TimeControl "180+1"]
[EndTime "10:03:11 PDT"]
[Termination "verrbaa won by resignation"]

1. e4 {[%clk 0:03:00.9]} 1... e5 {[%clk 0:02:59.4]} 2. Nf3 {[%clk 0:02:58.2]}
2... Nc6 {[%clk 0:02:59.4]} 3. Bc4 {[%clk 0:02:57.4]} 3... Nf6 {[%clk
0:02:58.3]} 4. Ng5 {[%clk 0:02:52.5]} 4... d5 {[%clk 0:02:57.6]} 5. exd5 {[%clk
0:02:52.9]} 5... Na5 {[%clk 0:02:57.9]} 6. Bb5+ {[%clk 0:02:52.1]} 6... c6
{[%clk 0:02:58.2]} 7. dxc6 {[%clk 0:02:48.7]} 7... bxc6 {[%clk 0:02:59.1]} 8.
Bd3 {[%clk 0:02:45]} 8... Nd5 {[%clk 0:02:56]} 9. Nf3 {[%clk 0:02:38.4]} 9...
Bd6 {[%clk 0:02:41.8]} 10. O-O {[%clk 0:02:30.8]} 10... O-O {[%clk 0:02:39.9]}
11. Nc3 {[%clk 0:02:28]} 11... f5 {[%clk 0:02:29.6]} 12. Nxd5 {[%clk 0:02:15.3]}
12... cxd5 {[%clk 0:02:29.7]} 13. Be2 {[%clk 0:02:15.9]} 13... e4 {[%clk
0:02:10]} 14. Nd4 {[%clk 0:02:08.4]} 14... f4 {[%clk 0:01:55.4]} 15. d3 {[%clk
0:01:56.2]} 15... f3 {[%clk 0:01:43.2]} 16. gxf3 {[%clk 0:01:54.9]} 16... Bxh2+
{[%clk 0:01:25.9]} 17. Kg2 {[%clk 0:01:01.4]} 17... Qh4 {[%clk 0:01:25.3]} 0-1

[Event "Early-Titled-Tuesday-Blitz-September-26-2023"]
[Site "Chess.com"]
[Date "2023.09.26"]
[Round "11"]
[White "BogdanDeac"]
[Black "sergeikim"]
[Result "1-0"]
[WhiteElo "2931"]
[BlackElo "2606"]
[TimeControl "180+1"]
[EndTime "10:03:40 PDT"]
[Termination "BogdanDeac won by resignation"]

1. b3 {[%clk 0:02:59.2]} 1... Nf6 {[%clk 0:02:59.9]} 2. Bb2 {[%clk 0:02:58.4]}
2... g6 {[%clk 0:03:00.8]} 3. Nf3 {[%clk 0:02:58.4]} 3... Bg7 {[%clk 0:03:01.1]}
4. g3 {[%clk 0:02:59.3]} 4... O-O {[%clk 0:03:00.6]} 5. Bg2 {[%clk 0:02:59.6]}
5... d6 {[%clk 0:03:01]} 6. d4 {[%clk 0:02:59.8]} 6... e5 {[%clk 0:02:59.7]} 7.
dxe5 {[%clk 0:03:00]} 7... Nfd7 {[%clk 0:03:00.3]} 8. O-O {[%clk 0:02:58.4]}
8... dxe5 {[%clk 0:03:00.4]} 9. e4 {[%clk 0:02:58]} 9... Nc6 {[%clk 0:02:59.8]}
10. Na3 {[%clk 0:02:55.9]} 10... Nc5 {[%clk 0:02:58.2]} 11. Qe2 {[%clk 0:02:52]}
11... Bg4 {[%clk 0:02:47.7]} 12. Rad1 {[%clk 0:02:45.7]} 12... Qe7 {[%clk
0:02:46.6]} 13. c3 {[%clk 0:02:30.9]} 13... a6 {[%clk 0:02:37.5]} 14. Nc4 {[%clk
0:02:24.3]} 14... Be6 {[%clk 0:02:19.3]} 15. Ba3 {[%clk 0:02:19.1]} 15... b6
{[%clk 0:01:59.6]} 16. Ne3 {[%clk 0:02:16.9]} 16... Rfc8 {[%clk 0:01:49.1]} 17.
Nd5 {[%clk 0:02:04.3]} 17... Qf8 {[%clk 0:01:48.8]} 18. Ng5 {[%clk 0:02:01.7]}
18... Nd8 {[%clk 0:01:33.5]} 19. Nxe6 {[%clk 0:01:46]} 19... Ndxe6 {[%clk
0:01:33.2]} 20. Bh3 {[%clk 0:01:46.2]} 20... a5 {[%clk 0:01:04.6]} 21. Qc4
{[%clk 0:01:36.2]} 21... h6 {[%clk 0:01:03.2]} 22. Bxe6 {[%clk 0:01:26.9]} 22...
fxe6 {[%clk 0:01:03.2]} 23. Ne3 {[%clk 0:01:26.3]} 23... Qf3 {[%clk 0:00:59.3]}
24. Bxc5 {[%clk 0:01:22]} 24... bxc5 {[%clk 0:00:58.9]} 25. Qxe6+ {[%clk
0:01:18.7]} 25... Kh8 {[%clk 0:00:58]} 26. Qxg6 {[%clk 0:01:12.1]} 26... Rd8
{[%clk 0:00:57.7]} 27. Nf5 {[%clk 0:01:02]} 1-0

[Event "Early-Titled-Tuesday-Blitz-September-26-2023"]
[Site "Chess.com"]
[Date "2023.09.26"]
[Round "11"]
[White "Aleksandar-Topalov"]
[Black "cristiano78"]
[Result "1/2-1/2"]
[WhiteElo "2371"]
[BlackElo "2246"]
[TimeControl "180+1"]
[EndTime "10:03:43 PDT"]
[Termination "Game drawn by repetition"]

1. b3 {[%clk 0:02:58.2]} 1... Nc6 {[%clk 0:01:58.5]} 2. Bb2 {[%clk 0:02:57.3]}
2... Nf6 {[%clk 0:01:58]} 3. c4 {[%clk 0:02:56.5]} 3... g6 {[%clk 0:01:57.9]} 4.
Nf3 {[%clk 0:02:55.5]} 4... Bg7 {[%clk 0:01:58.1]} 5. e3 {[%clk 0:02:55.3]} 5...
O-O {[%clk 0:01:58.1]} 6. Be2 {[%clk 0:02:55.7]} 6... d5 {[%clk 0:01:57.9]} 7.
cxd5 {[%clk 0:02:55.2]} 7... Nxd5 {[%clk 0:01:58.8]} 8. Bxg7 {[%clk 0:02:54.5]}
8... Kxg7 {[%clk 0:01:59.7]} 9. a3 {[%clk 0:02:54.8]} 9... e5 {[%clk 0:01:59.7]}
10. d3 {[%clk 0:02:54]} 10... Be6 {[%clk 0:01:59.7]} 11. O-O {[%clk 0:02:53.8]}
11... h6 {[%clk 0:01:59.9]} 12. Nbd2 {[%clk 0:02:53.8]} 12... f5 {[%clk
0:02:00]} 13. Qc2 {[%clk 0:02:53.4]} 13... Qf6 {[%clk 0:01:59.3]} 14. Rac1
{[%clk 0:02:47.7]} 14... Rfd8 {[%clk 0:01:59]} 15. b4 {[%clk 0:02:47]} 15... Rd7
{[%clk 0:01:59]} 16. Nb3 {[%clk 0:02:45.9]} 16... e4 {[%clk 0:01:49.1]} 17. dxe4
{[%clk 0:02:19.4]} 17... fxe4 {[%clk 0:01:48.8]} 18. Qxe4 {[%clk 0:02:18.9]}
18... Bf5 {[%clk 0:01:47.4]} 19. Qc4 {[%clk 0:02:13.4]} 19... Nb6 {[%clk
0:01:47.1]} 20. Qc3 {[%clk 0:02:03.6]} 20... Qxc3 {[%clk 0:01:42.7]} 21. Rxc3
{[%clk 0:02:03.7]} 21... Re7 {[%clk 0:01:35.9]} 22. Nc5 {[%clk 0:02:01.9]} 22...
Nd5 {[%clk 0:01:25.3]} 23. Rcc1 {[%clk 0:01:57.1]} 23... b6 {[%clk 0:01:21.9]}
24. e4 {[%clk 0:01:49.2]} 24... bxc5 {[%clk 0:01:15.1]} 25. exd5 {[%clk
0:01:45.1]} 25... Rxe2 {[%clk 0:01:13.7]} 26. dxc6 {[%clk 0:01:42.2]} 26... cxb4
{[%clk 0:01:12.9]} 27. axb4 {[%clk 0:01:42.6]} 27... Rb2 {[%clk 0:01:10.6]} 28.
Rfe1 {[%clk 0:01:27.1]} 28... Kf6 {[%clk 0:01:06.8]} 29. Ne5 {[%clk 0:01:22.8]}
29... Rxb4 {[%clk 0:00:56.4]} 30. Nd7+ {[%clk 0:01:22.6]} 30... Kf7 {[%clk
0:00:54.9]} 31. Ne5+ {[%clk 0:01:16]} 31... Kf6 {[%clk 0:00:54.4]} 32. Nd7+
{[%clk 0:01:16]} 32... Kf7 {[%clk 0:00:51.9]} 33. Ne5+ {[%clk 0:01:16.1]} 33...
Kf6 {[%clk 0:00:50.2]} 1/2-1/2

[Event "Early-Titled-Tuesday-Blitz-September-26-2023"]
[Site "Chess.com"]
[Date "2023.09.26"]
[Round "11"]
[White "GG91"]
[Black "Yurasova_Daria"]
[Result "0-1"]
[WhiteElo "2314"]
[BlackElo "2475"]
[TimeControl "180+1"]
[EndTime "10:03:50 PDT"]
[Termination "Yurasova_Daria won by resignation"]

1. d4 {[%clk 0:02:51]} 1... d5 {[%clk 0:02:59.6]} 2. Nf3 {[%clk 0:02:51]} 2...
Nf6 {[%clk 0:02:59.7]} 3. e3 {[%clk 0:02:51.3]} 3... Bf5 {[%clk 0:02:56.4]} 4.
Ne5 {[%clk 0:02:49.4]} 4... e6 {[%clk 0:02:56.5]} 5. g4 {[%clk 0:02:48.8]} 5...
Bg6 {[%clk 0:02:38]} 6. h4 {[%clk 0:02:48.7]} 6... h6 {[%clk 0:02:25.6]} 7. Nxg6
{[%clk 0:02:48.4]} 7... fxg6 {[%clk 0:02:26.5]} 8. Bd3 {[%clk 0:02:48.6]} 8...
Kf7 {[%clk 0:02:26.2]} 9. h5 {[%clk 0:02:46.2]} 9... g5 {[%clk 0:02:25.7]} 10.
Bg6+ {[%clk 0:02:42]} 10... Kg8 {[%clk 0:02:25.6]} 11. Nd2 {[%clk 0:02:40.4]}
11... Nbd7 {[%clk 0:02:25.4]} 12. f4 {[%clk 0:02:25.1]} 12... gxf4 {[%clk
0:02:23.6]} 13. exf4 {[%clk 0:02:24.7]} 13... Bd6 {[%clk 0:02:24]} 14. g5 {[%clk
0:02:08.2]} 14... hxg5 {[%clk 0:02:22.2]} 15. fxg5 {[%clk 0:02:08.1]} 15... Nh7
{[%clk 0:02:18.2]} 16. Qg4 {[%clk 0:01:52.8]} 16... Nhf8 {[%clk 0:02:11]} 17.
Nf3 {[%clk 0:01:31.8]} 17... Qe7 {[%clk 0:01:59.9]} 18. Bd3 {[%clk 0:01:21.9]}
18... e5 {[%clk 0:01:59.3]} 19. dxe5 {[%clk 0:01:06.8]} 19... Nxe5 {[%clk
0:01:58.4]} 20. Nxe5 {[%clk 0:01:07.1]} 20... Qxe5+ {[%clk 0:01:57.9]} 21. Kf1
{[%clk 0:01:06.9]} 21... Ne6 {[%clk 0:01:54.8]} 22. Bd2 {[%clk 0:00:57.2]} 22...
Rf8+ {[%clk 0:01:52.4]} 23. Kg1 {[%clk 0:00:45.5]} 23... Bc5+ {[%clk 0:01:35.9]}
24. Kg2 {[%clk 0:00:44.9]} 24... Rf2+ {[%clk 0:01:35.7]} 25. Kh3 {[%clk
0:00:44]} 25... Rxd2 {[%clk 0:01:35.1]} 26. Rae1 {[%clk 0:00:43.8]} 26... Nxg5+
{[%clk 0:01:34.6]} 27. Kh4 {[%clk 0:00:43.4]} 27... Bf2+ {[%clk 0:01:23.9]} 0-1

[Event "Early-Titled-Tuesday-Blitz-September-26-2023"]
[Site "Chess.com"]
[Date "2023.09.26"]
[Round "11"]
[White "Rosh1610"]
[Black "Botvinnak"]
[Result "1-0"]
[WhiteElo "2468"]
[BlackElo "2323"]
[TimeControl "180+1"]
[EndTime "10:03:53 PDT"]
[Termination "Rosh1610 won by resignation"]

1. e4 {[%clk 0:02:22.2]} 1... c5 {[%clk 0:02:57]} 2. Nf3 {[%clk 0:02:21.4]} 2...
Nc6 {[%clk 0:02:56.8]} 3. d4 {[%clk 0:02:22]} 3... cxd4 {[%clk 0:02:56.7]} 4.
Nxd4 {[%clk 0:02:22.9]} 4... g6 {[%clk 0:02:56.4]} 5. Nc3 {[%clk 0:02:23.1]}
5... Bg7 {[%clk 0:02:56.9]} 6. Be3 {[%clk 0:02:23.8]} 6... Nf6 {[%clk
0:02:57.4]} 7. Bc4 {[%clk 0:02:24.5]} 7... O-O {[%clk 0:02:57.9]} 8. O-O {[%clk
0:02:25]} 8... a6 {[%clk 0:02:57.9]} 9. Bb3 {[%clk 0:02:25]} 9... d6 {[%clk
0:02:57.7]} 10. f3 {[%clk 0:02:25.3]} 10... Bd7 {[%clk 0:02:55.2]} 11. Qd2
{[%clk 0:02:24.9]} 11... Rc8 {[%clk 0:02:55.7]} 12. h3 {[%clk 0:02:23.6]} 12...
Re8 {[%clk 0:02:55.8]} 13. Rad1 {[%clk 0:02:22.8]} 13... Ne5 {[%clk 0:02:55.9]}
14. Qe2 {[%clk 0:02:22.8]} 14... b5 {[%clk 0:02:55.7]} 15. f4 {[%clk 0:02:21.1]}
15... Nc4 {[%clk 0:02:56]} 16. Bxc4 {[%clk 0:02:21.1]} 16... Rxc4 {[%clk
0:02:55.6]} 17. e5 {[%clk 0:02:19.3]} 17... Nh5 {[%clk 0:02:55.4]} 18. Qf3
{[%clk 0:02:13.3]} 18... Bh8 {[%clk 0:02:40.1]} 19. Ne4 {[%clk 0:01:49.6]} 19...
Qc7 {[%clk 0:02:35.7]} 20. g4 {[%clk 0:01:46]} 20... Ng7 {[%clk 0:02:17.8]} 21.
exd6 {[%clk 0:01:44.6]} 21... exd6 {[%clk 0:02:16]} 22. Nf6+ {[%clk 0:01:44.2]}
22... Kf8 {[%clk 0:02:16.4]} 23. Nxe8 {[%clk 0:01:17.8]} 23... Nxe8 {[%clk
0:02:16.3]} 24. f5 {[%clk 0:01:15.4]} 24... g5 {[%clk 0:02:15.3]} 25. Ne6+
{[%clk 0:01:11.6]} 25... Bxe6 {[%clk 0:01:39.6]} 26. fxe6 {[%clk 0:01:12.5]}
26... Bf6 {[%clk 0:01:33.5]} 27. exf7 {[%clk 0:01:00.6]} 27... Kxf7 {[%clk
0:01:30.7]} 28. Bxg5 {[%clk 0:00:59.2]} 28... Qc5+ {[%clk 0:01:30.4]} 29. Be3
{[%clk 0:00:59.2]} 29... Qe5 {[%clk 0:01:18.3]} 30. g5 {[%clk 0:00:58.2]} 30...
Re4 {[%clk 0:01:17.4]} 31. Rde1 {[%clk 0:00:50.2]} 31... Rxe3 {[%clk 0:01:13.5]}
32. Qxe3 {[%clk 0:00:47.4]} 32... Qxe3+ {[%clk 0:01:12.6]} 33. Rxe3 {[%clk
0:00:47.9]} 1-0

[Event "Early-Titled-Tuesday-Blitz-September-26-2023"]
[Site "Chess.com"]
[Date "2023.09.26"]
[Round "11"]
[White "Staudenhocker43"]
[Black "Aradhya2000"]
[Result "0-1"]
[WhiteElo "2564"]
[BlackElo "2690"]
[TimeControl "180+1"]
[EndTime "10:03:54 PDT"]
[Termination "Aradhya2000 won by resignation"]

1. e4 {[%clk 0:03:00.9]} 1... e5 {[%clk 0:03:00]} 2. Nf3 {[%clk 0:03:00.4]} 2...
Nc6 {[%clk 0:03:00.6]} 3. Bb5 {[%clk 0:02:59.9]} 3... a6 {[%clk 0:03:00.8]} 4.
Ba4 {[%clk 0:03:00.2]} 4... Nge7 {[%clk 0:03:01.5]} 5. O-O {[%clk 0:02:58.9]}
5... Ng6 {[%clk 0:03:01.7]} 6. c3 {[%clk 0:02:53.6]} 6... d5 {[%clk 0:03:01.2]}
7. d3 {[%clk 0:02:31.7]} 7... Be7 {[%clk 0:03:00.1]} 8. Nbd2 {[%clk 0:02:25.8]}
8... O-O {[%clk 0:02:59.8]} 9. Re1 {[%clk 0:02:25.6]} 9... Be6 {[%clk
0:02:58.8]} 10. Nf1 {[%clk 0:02:21.5]} 10... b5 {[%clk 0:02:58.2]} 11. Bc2
{[%clk 0:02:20]} 11... d4 {[%clk 0:02:58.1]} 12. cxd4 {[%clk 0:02:18.9]} 12...
Nxd4 {[%clk 0:02:57.2]} 13. Nxd4 {[%clk 0:02:18.8]} 13... Qxd4 {[%clk
0:02:57.8]} 14. Ng3 {[%clk 0:02:03.4]} 14... Rfd8 {[%clk 0:02:55.7]} 15. Re3
{[%clk 0:01:50.9]} 15... Bg5 {[%clk 0:02:52.9]} 16. Rf3 {[%clk 0:01:45.9]} 16...
Bxc1 {[%clk 0:02:53.4]} 17. Qxc1 {[%clk 0:01:46.6]} 17... Nf4 {[%clk 0:02:53.7]}
18. a3 {[%clk 0:01:36.4]} 18... c5 {[%clk 0:02:39.7]} 19. Re3 {[%clk 0:01:35.6]}
19... Bg4 {[%clk 0:02:25.7]} 20. h3 {[%clk 0:01:30.2]} 20... Be6 {[%clk
0:02:23.5]} 21. Ne2 {[%clk 0:01:29.3]} 21... Nxe2+ {[%clk 0:02:20.7]} 22. Rxe2
{[%clk 0:01:30.2]} 22... Ra7 {[%clk 0:02:18]} 23. Rb1 {[%clk 0:01:23.9]} 23...
Rad7 {[%clk 0:02:16.8]} 24. Qe3 {[%clk 0:01:22.4]} 24... Kf8 {[%clk 0:02:09.5]}
25. Qxd4 {[%clk 0:01:16.6]} 25... Rxd4 {[%clk 0:02:09.4]} 26. Kf1 {[%clk
0:01:10.8]} 26... c4 {[%clk 0:02:08.7]} 27. Rd2 {[%clk 0:00:47.5]} 27... cxd3
{[%clk 0:02:07.7]} 28. Bd1 {[%clk 0:00:48.2]} 28... Rxe4 {[%clk 0:02:08.3]} 29.
Rc1 {[%clk 0:00:47.7]} 29... Rc4 {[%clk 0:02:08]} 30. Rxc4 {[%clk 0:00:43.3]}
30... bxc4 {[%clk 0:02:08.3]} 31. f3 {[%clk 0:00:43.1]} 31... Ke7 {[%clk
0:02:08.2]} 32. Kf2 {[%clk 0:00:35.9]} 32... f5 {[%clk 0:02:08.1]} 33. Ke3
{[%clk 0:00:34.3]} 33... f4+ {[%clk 0:02:08.1]} 34. Kf2 {[%clk 0:00:33.3]} 34...
h5 {[%clk 0:02:07]} 35. h4 {[%clk 0:00:32.4]} 35... Kd6 {[%clk 0:02:00.2]} 36.
Ba4 {[%clk 0:00:31.7]} 36... Kc5 {[%clk 0:02:00]} 37. Rd1 {[%clk 0:00:26.8]}
37... Bd7 {[%clk 0:01:59.2]} 38. Bxd7 {[%clk 0:00:24.7]} 38... Rxd7 {[%clk
0:02:00.1]} 39. Ke1 {[%clk 0:00:24.4]} 39... Kd4 {[%clk 0:01:59.2]} 40. Kd2
{[%clk 0:00:24.6]} 40... Rb7 {[%clk 0:01:59.8]} 41. Rb1 {[%clk 0:00:24.3]} 41...
Rxb2+ {[%clk 0:01:59.9]} 42. Rxb2 {[%clk 0:00:22.8]} 42... c3+ {[%clk
0:02:00.4]} 43. Kc1 {[%clk 0:00:21.9]} 43... cxb2+ {[%clk 0:02:01.3]} 44. Kxb2
{[%clk 0:00:22.3]} 44... Ke3 {[%clk 0:02:02]} 0-1